bitfinex-derivatives/quotes_BTCF0:USTF0_20240829
["timestamp","ask_amount","ask_price","bid_price","bid_amount"]
[1724942482125,0.08238947,60854.0,60853.0,0.082144]
[1724942482126,0.00024647,60854.0,60853.0,0.082144]
[1724942484023,0.01424647,60854.0,60853.0,0.082144]
[1724942484219,0.02824647,60854.0,60853.0,0.082144]
[1724942484822,0.00024647,60854.0,60853.0,0.082144]
[1724942485022,0.02824647,60854.0,60853.0,0.001]
[1724942485209,0.11039047,60854.0,60853.0,0.001]
[1724942486024,0.47119047,60854.0,60853.0,0.001]
[1724942486318,0.52159844,60854.0,60853.0,0.001]
[1724942486510,0.60374244,60854.0,60853.0,0.001]
[1724942486714,1.64633447,60854.0,60853.0,0.001]
[1724942486922,1.72847847,60854.0,60853.0,0.001]
[1724942487317,1.77889409,60854.0,60853.0,0.001]
[1724942487638,0.082175,60830.0,60823.0,0.082184]
[1724942487811,0.082175,60830.0,60810.0,0.3608]
[1724942487812,0.7216,60830.0,60810.0,0.3608]
[1724942488010,0.082179,60827.0,60817.0,0.3608]
[1724942488217,0.3608,60830.0,60817.0,0.3608]
[1724942488423,0.32654,60834.0,60833.0,0.082171]
[1724942488629,0.082168,60836.0,60831.0,0.1542]
[1724942488836,0.3608,60837.0,60827.0,0.00016506]
[1724942489017,0.082178,60828.0,60827.0,0.00016506]
[1724942489218,0.081178,60828.0,60827.0,0.00016506]
[1724942490029,1.174378,60828.0,60827.0,0.00016506]
[1724942490228,1.174378,60828.0,60818.0,0.15424]
[1724942490413,1.174378,60828.0,60799.0,0.3287]
[1724942490414,0.082198,60814.0,60803.0,0.36252]
[1724942490618,0.3608,60810.0,60808.0,0.082205]
[1724942490920,0.082206,60808.0,60803.0,0.443011]
[1724942491120,0.3608,60810.0,60806.0,0.082207]
[1724942491326,0.3608,60810.0,60808.0,0.082205]
[1724942491818,0.3608,60810.0,60809.0,0.082204]
[1724942492324,0.00024668,60814.0,60809.0,0.85416]
[1724942492521,0.00024668,60814.0,60812.0,0.082199]
[1724942492825,0.00024668,60814.0,60813.0,0.082198]
[1724942494421,0.00824668,60814.0,60813.0,0.082198]
[1724942495121,0.01424668,60814.0,60813.0,0.10752626]
[1724942495319,0.02324668,60814.0,60813.0,0.10752626]
[1724942495824,0.00924668,60814.0,60813.0,0.08352626]
[1724942497024,0.00924668,60814.0,60813.0,0.02532826]
[1724942497325,0.0822,60812.0,60806.0,0.3608]
[1724942497531,0.0822,60812.0,60808.0,0.082205]
[1724942497728,0.00924668,60814.0,60806.0,0.54221152]
[1724942498030,0.00924668,60814.0,60806.0,0.54045152]
[1724942498325,0.00924668,60814.0,60813.0,0.082198]
[1724942498518,0.00024668,60814.0,60813.0,0.082198]
[1724942500427,0.00124668,60814.0,60812.0,0.082198]
[1724942500733,0.00124668,60814.0,60813.0,0.082198]
[1724942500927,0.3608,60827.0,60813.0,0.65012]
[1724942501123,0.082176,60830.0,60823.0,0.3608]
[1724942501526,0.082176,60830.0,60826.0,0.08218]
[1724942501933,0.3608,60831.0,60823.0,0.3608]
[1724942502235,0.009,60825.0,60823.0,0.3608]
[1724942502435,0.009,60825.0,60824.0,0.082183]
[1724942502735,0.0038,60842.0,60841.0,0.08216]
[1724942502933,0.3608,60852.0,60849.0,0.082149]
[1724942503137,0.3608,60852.0,60841.0,0.51428]
[1724942503533,0.082148,60850.0,60843.0,0.082157]
[1724942503729,0.3608,60852.0,60846.0,0.082153]
[1724942504031,0.3608,60852.0,60848.0,0.08215]
[1724942505128,0.3748,60852.0,60848.0,0.08215]
[1724942505931,0.3608,60852.0,60848.0,0.08215]
[1724942506138,0.3708,60852.0,60848.0,0.08215]
[1724942506633,0.452946,60852.0,60848.0,0.08215]
[1724942506835,0.452946,60852.0,60848.0,0.10687827]
[1724942507228,0.452946,60852.0,60848.0,0.02472827]
[1724942507433,0.08215,60849.0,60847.0,0.15472]
[1724942507844,0.3708,60852.0,60847.0,0.15472]
[1724942508042,0.01,60852.0,60851.0,0.082147]
[1724942508539,0.00024668,60853.0,60851.0,0.082147]
[1724942509244,0.08239168,60853.0,60848.0,0.082151]
[1724942509938,0.082147,60851.0,60847.0,0.15572]
[1724942510130,0.082149,60850.0,60847.0,0.15572]
[1724942510335,0.08215,60849.0,60847.0,0.15572]
[1724942510640,0.082154,60846.0,60844.0,0.38535679]
[1724942510837,0.08115,60849.0,60844.0,0.54007679]
[1724942511035,0.013,60852.0,60847.0,0.082151]
[1724942511342,0.08239168,60853.0,60847.0,0.082151]
[1724942511343,0.00024668,60853.0,60851.0,0.3608]
[1724942512240,0.082128,60865.0,60852.0,0.6516]
[1724942512439,0.082128,60865.0,60864.0,0.3608]
[1724942512754,0.4404,60875.0,60864.0,0.3608]
[1724942513044,0.082121,60871.0,60868.0,0.082123]
[1724942513243,0.3608,60875.0,60864.0,0.3608]
[1724942513244,0.082121,60870.0,60864.0,0.3608]
[1724942514042,0.154,60874.0,60864.0,0.46824369]
[1724942514344,0.014,60865.0,60864.0,0.46924369]
[1724942515142,0.082125,60868.0,60864.0,0.46824369]
[1724942515344,0.082125,60868.0,60864.0,0.46924369]
[1724942515547,0.082125,60867.0,60864.0,0.46924369]
[1724942515849,0.082117,60873.0,60864.0,0.38711469]
[1724942516030,0.014,60865.0,60864.0,0.38711469]
[1724942516434,0.014,60865.0,60864.0,0.46924369]
[1724942517546,0.00024647,60876.0,60864.0,0.55137269]
[1724942517735,0.0038,60886.0,60875.0,0.7108]
[1724942517935,0.0777,60889.0,60880.0,0.3608]
[1724942518137,0.0777,60889.0,60885.0,0.0821]
[1724942518345,0.0777,60889.0,60880.0,0.3608]
[1724942518652,0.082106,60882.0,60881.0,0.15468]
[1724942519234,0.0777,60889.0,60881.0,0.15464]
[1724942519432,0.0777,60889.0,60885.0,0.082101]
[1724942519835,0.082098,60888.0,60885.0,0.082101]
[1724942520037,0.082098,60887.0,60885.0,0.082101]
[1724942520245,0.082098,60887.0,60882.0,0.082104]
[1724942520448,0.082097,60888.0,60884.0,0.082102]
[1724942520647,0.0777,60889.0,60884.0,0.082102]
[1724942520648,0.082099,60887.0,60884.0,0.082102]
[1724942521039,0.0777,60889.0,60883.0,0.15464]
[1724942521040,0.082101,60885.0,60883.0,0.15464]
[1724942521342,0.082101,60885.0,60884.0,0.15464]
[1724942521744,0.082101,60885.0,60882.0,0.082105]
[1724942522144,0.082101,60885.0,60883.0,0.15464]
[1724942522541,0.00024647,60891.0,60883.0,0.15464]
[1724942522747,0.00024647,60891.0,60890.0,0.082094]
[1724942523045,0.00024647,60891.0,60888.0,0.3608]
[1724942523046,0.0038,60908.0,60889.0,0.35]
[1724942523247,0.082071,60908.0,60896.0,0.35]
[1724942523551,0.082083,60899.0,60896.0,0.432086]
[1724942523740,0.3608,60910.0,60896.0,0.35]
[1724942523941,0.082074,60905.0,60896.0,0.35]
[1724942524353,0.082079,60902.0,60896.0,0.432085]
[1724942524551,0.082079,60902.0,60896.0,0.35]
[1724942524848,0.00024647,60907.0,60901.0,0.3608]
[1724942525047,0.00024647,60907.0,60902.0,0.1546]
[1724942525246,0.08231847,60907.0,60904.0,0.082075]
[1724942525447,0.00024647,60907.0,60901.0,0.442879]
[1724942525752,0.082078,60902.0,60901.0,0.3608]
[1724942526048,0.082078,60902.0,60901.0,0.5164]
[1724942526846,0.088078,60902.0,60901.0,0.5164]
[1724942527447,0.170156,60902.0,60901.0,0.001]
[1724942527652,0.530956,60902.0,60901.0,0.001]
[1724942529954,0.448878,60902.0,60901.0,0.001]
[1724942530153,0.006,60902.0,60901.0,0.083079]
[1724942531050,0.088078,60902.0,60901.0,0.083079]
[1724942531553,0.006,60902.0,60901.0,0.083079]
[1724942531943,0.081082,60900.0,60896.0,0.37438063]
[1724942532143,0.082083,60899.0,60898.0,0.082082]
[1724942532662,0.006,60902.0,60898.0,0.082082]
[1724942532854,0.082082,60899.0,60898.0,0.082082]
[1724942533355,0.082085,60897.0,60896.0,0.53070063]
[1724942533549,0.082085,60897.0,60896.0,0.52898063]
[1724942533751,0.082085,60897.0,60896.0,0.61206663]
[1724942533949,0.082085,60897.0,60896.0,0.26206663]
[1724942534255,0.16417,60897.0,60896.0,0.001]
[1724942534459,0.082085,60897.0,60896.0,0.001]
[1724942534853,0.082083,60899.0,60896.0,0.001]
[1724942535056,0.082084,60898.0,60896.0,0.083086]
[1724942535355,0.082084,60898.0,60896.0,0.001]
[1724942535356,0.082085,60897.0,60896.0,0.001]
[1724942535561,0.082085,60897.0,60894.0,0.02921473]
[1724942535562,0.081088,60895.0,60894.0,0.02921473]
[1724942536352,0.080088,60895.0,60894.0,0.02921473]
[1724942537055,0.162176,60895.0,60894.0,0.02921473]
[1724942537259,0.080088,60895.0,60894.0,0.02921473]
[1724942537453,0.080088,60895.0,60894.0,0.11230373]
[1724942537454,0.007,60895.0,60894.0,0.11230373]
[1724942537848,0.089088,60895.0,60894.0,0.11230373]
[1724942538152,0.089088,60895.0,60894.0,0.03021473]
[1724942540171,0.171176,60895.0,60894.0,0.03021473]
[1724942540457,0.531976,60895.0,60894.0,0.00124647]
[1724942541758,0.449888,60895.0,60894.0,0.00124647]
[1724942542559,0.449888,60895.0,60894.0,0.08333547]
[1724942543462,0.3678,60895.0,60894.0,0.08333547]
[1724942543648,0.3678,60895.0,60894.0,1.01886447]
[1724942543649,0.007,60895.0,60894.0,1.01886447]
[1724942543850,0.007,60895.0,60894.0,1.86235347]
[1724942544051,0.00024647,60907.0,60906.0,0.082073]
[1724942544247,0.00024647,60907.0,60906.0,0.15424]
[1724942545152,0.08231747,60907.0,60906.0,0.15424]
[1724942546064,0.082076,60904.0,60899.0,0.442882]
[1724942546560,0.082076,60904.0,60900.0,0.236321]
[1724942547754,0.082077,60903.0,60900.0,0.236321]
[1724942548460,0.082077,60903.0,60901.0,0.082079]
[1724942548764,0.00024647,60907.0,60901.0,0.15424]
[1724942549070,0.082078,60902.0,60901.0,0.15424]
[1724942550159,0.082079,60901.0,60900.0,0.15524]
[1724942550858,0.082079,60901.0,60900.0,0.15424]
[1724942551057,0.081079,60901.0,60900.0,0.15424]
[1724942551563,0.163158,60901.0,60900.0,0.15424]
[1724942551861,0.164176,60895.0,60894.0,0.00024647]
[1724942552164,0.245264,60895.0,60894.0,0.00024647]
[1724942552760,1.337904,60895.0,60894.0,0.00024647]
[1724942553464,0.245264,60895.0,60894.0,0.00024647]
[1724942553967,0.29464337,60895.0,60894.0,0.00024647]
[1724942554262,0.244264,60895.0,60894.0,0.00024647]
[1724942554656,0.248264,60895.0,60894.0,0.00124647]
[1724942555064,0.2986433,60895.0,60894.0,0.00124647]
[1724942555263,0.2165553,60895.0,60894.0,0.00124647]
[1724942556066,0.29864326,60895.0,60894.0,0.00124647]
[1724942556460,0.164188,60890.0,60889.0,0.02998717]
[1724942556757,0.164188,60890.0,60882.0,0.432105]
[1724942556758,0.081104,60883.0,60882.0,0.432105]
[1724942557170,0.081104,60883.0,60882.0,0.46122491]
[1724942557563,0.080104,60883.0,60882.0,0.46122491]
[1724942558365,0.083104,60883.0,60882.0,0.46222491]
[1724942558761,0.083104,60883.0,60882.0,0.38011991]
[1724942559760,0.247312,60883.0,60882.0,0.03011991]
[1724942559960,0.246336,60877.0,60876.0,0.00024647]
[1724942560275,0.082133,60861.0,60860.0,0.3608]
[1724942560469,0.082137,60858.0,60856.0,0.1583]
[1724942560674,0.3608,60861.0,60857.0,0.28]
[1724942560973,0.3608,60871.0,60860.0,0.3608]
[1724942561167,0.00024647,60872.0,60867.0,0.3608]
[1724942561374,0.082119,60872.0,60871.0,0.28]
[1724942562075,0.3608,60878.0,60871.0,0.28]
[1724942562269,0.3608,60878.0,60871.0,0.43428]
[1724942562466,0.082119,60872.0,60871.0,0.43428]
[1724942563264,0.082113,60877.0,60871.0,0.92712]
[1724942563569,0.082113,60877.0,60876.0,0.28]
[1724942565071,0.093113,60877.0,60876.0,0.281]
[1724942567775,0.093113,60877.0,60876.0,0.6418]
[1724942569285,0.093113,60877.0,60876.0,0.3618]
[1724942569475,0.093113,60877.0,60876.0,0.001]
[1724942570987,0.011,60877.0,60876.0,0.445226]
[1724942571197,0.011,60877.0,60876.0,0.363113]
[1724942571693,0.00024647,60881.0,60880.0,0.082108]
[1724942571892,0.08235247,60881.0,60880.0,0.3608]
[1724942572095,0.08235247,60881.0,60878.0,0.08211]
[1724942572096,0.00024647,60881.0,60878.0,0.08211]
[1724942572797,0.082109,60879.0,60878.0,0.08211]
[1724942573097,0.082112,60877.0,60876.0,0.281]
[1724942573684,0.082112,60877.0,60876.0,0.001]
[1724942573991,0.081113,60876.0,60875.0,0.15328]
[1724942574491,0.08208,60901.0,60876.0,0.4928]
[1724942574694,0.0038,60901.0,60893.0,0.6408]
[1724942574897,0.3608,60903.0,60900.0,0.28]
[1724942575099,0.0824,60907.0,60902.0,0.3608]
[1724942575395,0.082076,60904.0,60900.0,0.28]
[1724942575987,0.04018338,60903.0,60900.0,0.28]
[1724942576193,0.082076,60904.0,60900.0,0.28]
[1724942577101,0.082076,60904.0,60900.0,0.362081]
[1724942577794,0.164472,60907.0,60901.0,0.082079]
[1724942577996,0.002,60904.0,60901.0,0.082079]
[1724942578196,0.002,60904.0,60900.0,0.281]
[1724942578697,0.002,60904.0,60903.0,0.082077]
[1724942578902,0.003,60907.0,60903.0,0.082077]
[1724942579095,0.003,60907.0,60901.0,0.001]
[1724942579096,0.003,60907.0,60905.0,0.082073]
[1724942579291,0.003,60907.0,60901.0,0.001]
[1724942579805,0.003,60907.0,60906.0,0.082073]
[1724942580111,0.003,60907.0,60905.0,0.64264]
[1724942580401,0.085072,60907.0,60906.0,0.15328]
[1724942580701,0.082072,60907.0,60906.0,0.15328]
[1724942580896,0.082073,60906.0,60905.0,0.36252]
[1724942581199,0.082073,60906.0,60905.0,0.3608]
[1724942581896,0.081073,60906.0,60905.0,0.3608]
[1724942582703,0.081073,60906.0,60905.0,0.6408]
[1724942582998,0.003,60907.0,60906.0,0.082073]
[1724942583596,0.082071,60907.0,60905.0,0.64252]
[1724942583813,0.003,60906.0,60905.0,0.6418]
[1724942584106,0.003,60906.0,60905.0,0.281]
[1724942584107,0.085073,60906.0,60905.0,0.281]
[1724942584489,0.003,60906.0,60905.0,0.363074]
[1724942584695,0.003,60906.0,60905.0,0.723874]
[1724942585099,0.082069,60909.0,60905.0,0.722874]
[1724942585409,0.002,60907.0,60906.0,0.083073]
[1724942586898,0.0038,60922.0,60910.0,0.082067]
[1724942587089,0.04017207,60921.0,60920.0,0.362054]
[1724942587808,0.082045,60927.0,60922.0,0.08205]
[1724942588105,0.082045,60927.0,60918.0,0.36104626]
[1724942588303,0.0772,60926.0,60919.0,0.15324]
[1724942588696,0.0772,60926.0,60919.0,0.235295]
[1724942588896,0.082052,60922.0,60920.0,0.281]
[1724942589098,0.0772,60926.0,60920.0,0.001]
[1724942589099,0.082052,60921.0,60920.0,0.001]
[1724942589501,0.164104,60921.0,60920.0,0.001]
[1724942590400,0.082055,60919.0,60918.0,0.39027042]
[1724942590600,0.081055,60919.0,60918.0,0.39027042]
[1724942591104,0.081055,60919.0,60918.0,0.02947042]
[1724942591307,0.20328299,60919.0,60918.0,0.02947042]
[1724942591512,0.20228299,60919.0,60918.0,0.02947042]
[1724942592308,0.26673538,60919.0,60918.0,0.02947042]
[1724942592516,0.12022882,60919.0,60918.0,0.11152742]
[1724942592995,0.20228382,60919.0,60918.0,0.02947042]
[1724942593191,0.26673538,60919.0,60918.0,0.02947042]
[1724942593401,0.34879038,60919.0,60918.0,0.02947042]
[1724942593605,1.38081882,60919.0,60918.0,0.00124626]
[1724942593793,0.082057,60918.0,60908.0,0.02882788]
[1724942593997,0.082069,60909.0,60908.0,0.02882788]
[1724942594201,0.12224282,60909.0,60908.0,0.02882788]
[1724942594403,0.27944282,60909.0,60908.0,0.02882788]
[1724942594605,0.36151182,60909.0,60908.0,0.02882788]
[1724942594795,0.082075,60904.0,60903.0,0.362077]
[1724942595002,0.12124882,60904.0,60903.0,0.362077]
[1724942596100,0.081075,60904.0,60903.0,0.30944841]
[1724942596913,0.081075,60904.0,60903.0,0.39152541]
[1724942597207,0.080075,60904.0,60903.0,0.30944841]
[1724942598009,0.16715,60904.0,60903.0,0.03044841]
[1724942598308,0.52795,60904.0,60903.0,0.001]
[1724942599199,0.4926,60903.0,60880.0,0.3608]
[1724942599398,0.3608,60884.0,60876.0,0.082112]
[1724942599606,0.159904,60883.0,60876.0,0.082112]
[1724942599812,0.082112,60878.0,60874.0,0.39069485]
[1724942600010,0.0778,60883.0,60874.0,0.39069485]
[1724942600313,0.08211,60879.0,60876.0,0.082112]
[1724942600812,0.082108,60880.0,60874.0,0.39069485]
[1724942601107,0.001,60878.0,60875.0,0.082114]
[1724942601307,0.001,60878.0,60874.0,0.39769485]
[1724942601510,0.3608,60897.0,60877.0,0.6408]
[1724942601811,0.3257,60895.0,60894.0,0.082089]
[1724942602110,0.0816,60901.0,60894.0,0.79384]
[1724942602299,0.082074,60905.0,60900.0,0.3608]
[1724942602606,0.164156,60902.0,60901.0,0.15304]
[1724942602812,0.082088,60895.0,60894.0,0.64256]
[1724942603017,0.082088,60895.0,60894.0,0.3608]
[1724942603204,0.082088,60895.0,60894.0,0.51388]
[1724942603512,0.082088,60895.0,60894.0,0.54319475]
[1724942604001,0.082088,60895.0,60894.0,0.39011475]
[1724942604201,0.082088,60895.0,60894.0,0.54319475]
[1724942604605,0.088088,60895.0,60894.0,0.39111475]
[1724942604904,0.12827445,60895.0,60894.0,0.39111475]
[1724942605103,0.12827445,60895.0,60894.0,0.54419475]
[1724942605301,0.04618645,60895.0,60894.0,0.62628375]
[1724942605503,0.04718645,60895.0,60894.0,0.62628375]
[1724942606011,0.04718645,60895.0,60894.0,0.47320375]
[1724942606212,0.089088,60895.0,60894.0,0.001]
[1724942606815,0.007,60895.0,60894.0,0.443889]
[1724942607007,0.007,60895.0,60894.0,0.3618]
[1724942607315,0.007,60895.0,60894.0,0.443889]
[1724942607917,0.3678,60895.0,60894.0,0.001]
[1724942608119,0.3678,60895.0,60894.0,0.03050102]
[1724942608313,0.3678,60895.0,60894.0,0.001]
[1724942609619,0.449888,60895.0,60894.0,0.001]
[1724942609820,0.449888,60895.0,60894.0,0.15408]
[1724942610019,0.49007798,60895.0,60894.0,0.18313467]
[1724942612018,0.12927798,60895.0,60894.0,0.03005467]
[1724942613017,0.04718998,60895.0,60894.0,0.11214367]
[1724942613223,0.04718611,60895.0,60894.0,0.11214367]
[1724942613418,0.007,60895.0,60894.0,0.11214367]
[1724942613720,0.04718562,60895.0,60894.0,0.11214367]
[1724942614309,0.007,60895.0,60894.0,0.11214367]
[1724942615022,0.13067453,60905.0,60904.0,0.082075]
[1724942615220,0.08231626,60908.0,60907.0,0.082071]
[1724942615221,0.00024626,60908.0,60907.0,0.082071]
[1724942615422,0.04042703,60908.0,60907.0,0.362071]
[1724942615725,0.00024626,60908.0,60907.0,0.362071]
[1724942615915,0.13067453,60918.0,60914.0,0.082061]
[1724942616115,0.0038,60921.0,60915.0,0.15308]
[1724942616116,0.04017486,60917.0,60915.0,0.15308]
[1724942616326,0.082053,60921.0,60915.0,0.15308]
[1724942616327,0.13067453,60921.0,60915.0,0.15308]
[1724942616529,0.13067453,60924.0,60922.0,0.082051]
[1724942616722,0.04016928,60923.0,60922.0,0.082051]
[1724942617124,0.04016928,60923.0,60921.0,0.1525]
[1724942617423,0.13060651,60923.0,60922.0,0.15308]
[1724942617624,0.04016853,60923.0,60922.0,0.15408]
[1724942618219,0.04016853,60923.0,60922.0,0.236131]
[1724942618421,0.13057671,60927.0,60922.0,0.236131]
[1724942618626,0.04016828,60926.0,60922.0,0.236131]
[1724942618831,0.04016828,60925.0,60922.0,0.236131]
[1724942619016,0.04016828,60924.0,60922.0,0.235131]
[1724942619220,0.57341971,60928.0,60922.0,0.235131]
[1724942619417,0.04016833,60927.0,60922.0,0.02912226]
[1724942619621,0.082047,60925.0,60923.0,0.15304]
[1724942620233,0.57429971,60928.0,60924.0,0.15304]
[1724942620424,0.04016833,60927.0,60924.0,0.15304]
[1724942620633,0.04016833,60926.0,60922.0,0.001]
[1724942620830,0.442843,60928.0,60923.0,0.15304]
[1724942620831,0.082048,60924.0,60923.0,0.15304]
[1724942621031,0.082048,60924.0,60923.0,0.15404]
[1724942621230,0.082044,60927.0,60923.0,0.15404]
[1724942621425,0.082046,60926.0,60923.0,0.15404]
[1724942621823,0.082046,60926.0,60923.0,0.15304]
[1724942622329,0.082047,60925.0,60923.0,0.15304]
[1724942622631,0.00016304,60929.0,60923.0,0.15304]
[1724942622632,0.082048,60924.0,60923.0,0.15304]
[1724942623021,0.3608,60927.0,60922.0,0.001]
[1724942623022,0.08205,60923.0,60922.0,0.001]
[1724942623223,0.08205,60923.0,60922.0,0.15404]
[1724942623431,0.082051,60922.0,60921.0,0.39014975]
[1724942623634,0.081051,60922.0,60921.0,0.54318975]
[1724942624235,0.081051,60922.0,60921.0,0.39014975]
[1724942624636,0.081051,60922.0,60921.0,0.54318975]
[1724942625039,0.080051,60922.0,60921.0,0.54318975]
[1724942626644,0.080051,60922.0,60921.0,0.54418975]
[1724942626845,0.12022132,60922.0,60921.0,0.54418975]
[1724942627441,0.20227232,60922.0,60921.0,0.54418975]
[1724942627647,0.28437232,60922.0,60921.0,0.001]
[1724942628653,0.72722332,60922.0,60921.0,0.001]
[1724942628856,0.7775741,60922.0,60921.0,0.001]
[1724942629550,0.64517232,60922.0,60921.0,0.001]
[1724942629849,0.69552642,60922.0,60921.0,0.001]
[1724942630753,0.64517492,60922.0,60921.0,0.001]
[1724942631349,0.72722592,60922.0,60921.0,0.001]
[1724942631552,0.28437492,60922.0,60921.0,0.001]
[1724942631955,0.64517492,60922.0,60921.0,0.001]
[1724942632347,0.72722592,60922.0,60921.0,0.001]
[1724942632550,0.84227768,60922.0,60921.0,0.001]
[1724942632954,0.77758027,60922.0,60921.0,0.001]
[1724942633454,0.77758027,60922.0,60906.0,0.513]
[1724942633455,0.082071,60907.0,60906.0,0.513]
[1724942633644,0.082071,60907.0,60906.0,0.62397475]
[1724942633848,0.12224922,60907.0,60906.0,0.62397475]
[1724942634054,0.13052933,60911.0,60906.0,0.90397475]
[1724942634249,0.04017743,60910.0,60909.0,0.082069]
[1724942634458,0.1305283,60911.0,60910.0,0.082067]
[1724942634667,0.0401748,60911.0,60910.0,0.082067]
[1724942634962,0.00024626,60916.0,60915.0,0.082061]
[1724942635162,0.00024626,60916.0,60915.0,0.722861]
[1724942635349,0.08205,60924.0,60915.0,0.6408]
[1724942635553,0.08205,60924.0,60920.0,0.082054]
[1724942635860,0.08205,60924.0,60915.0,0.6408]
[1724942635861,0.08205,60924.0,60921.0,0.082052]
[1724942636058,0.3608,60926.0,60921.0,0.082052]
[1724942636258,0.3608,60926.0,60915.0,0.6408]
[1724942636259,0.082052,60922.0,60917.0,0.00024626]
[1724942636452,0.082052,60922.0,60919.0,0.082055]
[1724942636657,0.082052,60922.0,60920.0,0.082054]
[1724942637558,0.083052,60922.0,60920.0,0.082054]
[1724942637861,0.083052,60922.0,60921.0,0.442852]
[1724942639361,0.001,60922.0,60921.0,0.442852]
[1724942640058,0.082049,60924.0,60921.0,0.442852]
[1724942640261,0.001,60922.0,60921.0,0.442852]
[1724942641561,0.002,60922.0,60921.0,0.439]
[1724942641870,0.002,60922.0,60921.0,0.521052]
[1724942642068,0.002,60922.0,60921.0,0.603104]
[1724942642369,0.00016304,60930.0,60929.0,0.082042]
[1724942642560,0.00016304,60930.0,60929.0,0.595002]
[1724942643161,0.04032673,60930.0,60929.0,0.234202]
[1724942643366,0.04032673,60930.0,60929.0,0.596244]
[1724942643569,0.04032673,60930.0,60929.0,0.514202]
[1724942643868,0.04132673,60930.0,60929.0,0.876002]
[1724942644671,0.09167002,60930.0,60929.0,0.876002]
[1724942645070,0.04132673,60930.0,60929.0,0.876002]
[1724942645262,0.04132673,60930.0,60929.0,0.90542963]
[1724942645461,0.18857025,60930.0,60929.0,0.90542963]
[1724942645664,0.27061025,60930.0,60929.0,0.39122763]
[1724942645965,0.082049,60924.0,60917.0,0.36104626]
[1724942646162,0.22936504,60922.0,60919.0,0.3608]
[1724942646363,0.18747773,60921.0,60919.0,0.3608]
[1724942646567,0.04016369,60920.0,60919.0,0.442855]
[1724942646969,0.03916369,60920.0,60919.0,0.442855]
[1724942647362,0.03916369,60920.0,60919.0,0.3608]
[1724942647769,0.18647773,60920.0,60919.0,0.3618]
[1724942648170,0.12121769,60920.0,60919.0,0.3618]
[1724942648770,0.28489996,60920.0,60919.0,0.3618]
[1724942648962,0.12121769,60920.0,60919.0,0.3618]
[1724942649372,0.20327169,60920.0,60919.0,0.001]
[1724942649563,0.35060085,60920.0,60919.0,0.001]
[1724942649762,0.25361498,60920.0,60919.0,0.001]
[1724942650173,0.43368391,60920.0,60919.0,0.001]
[1724942650381,0.35162991,60920.0,60919.0,0.001]
[1724942650872,0.17156098,60920.0,60919.0,0.001]
[1724942651474,0.08207,60908.0,60907.0,0.3608]
[1724942651783,0.08207,60908.0,60907.0,0.39071377]
[1724942652971,0.00024626,60914.0,60907.0,0.88327377]
[1724942653174,0.082067,60911.0,60907.0,0.47278477]
[1724942653368,0.082069,60909.0,60907.0,0.39071377]
[1724942653574,0.00024626,60914.0,60907.0,0.02991377]
[1724942653575,0.52494,60908.0,60907.0,0.02991377]
[1724942653772,0.082073,60906.0,60905.0,0.15216]
[1724942654180,0.081073,60906.0,60905.0,0.15216]
[1724942654574,0.081073,60906.0,60905.0,0.18102508]
[1724942655078,0.12425559,60906.0,60905.0,0.18202508]
[1724942655670,0.20632859,60906.0,60905.0,0.18202508]
[1724942656182,0.082078,60902.0,60901.0,0.00024626]
[1724942656474,0.56513859,60902.0,60901.0,0.00024626]
[1724942656679,0.61550968,60902.0,60901.0,0.00024626]
[1724942657378,1.49758259,60902.0,60881.0,0.0764]
[1724942657580,0.082096,60889.0,60888.0,0.15112]
[1724942657781,0.12228643,60889.0,60888.0,0.15112]
[1724942658276,0.082098,60887.0,60886.0,0.16416]
[1724942658480,0.082098,60887.0,60886.0,0.19439046]
[1724942658782,0.082093,60892.0,60889.0,0.082096]
[1724942658987,0.082098,60888.0,60886.0,0.28232946]
[1724942659169,0.082098,60888.0,60886.0,0.28048946]
[1724942659571,0.082092,60892.0,60886.0,0.19839046]
[1724942659880,0.00024626,60893.0,60886.0,0.19839046]
[1724942659881,0.082098,60887.0,60886.0,0.19839046]
[1724942660383,0.004,60887.0,60886.0,0.03023046]
[1724942660683,0.0821,60886.0,60885.0,0.00098762]
[1724942661186,0.0821,60886.0,60885.0,0.02990572]
[1724942661477,0.1642,60886.0,60885.0,0.02990572]
[1724942661986,0.1672,60886.0,60885.0,0.02990572]
[1724942663380,0.1642,60886.0,60885.0,0.02990572]
[1724942663577,0.1742,60886.0,60885.0,0.03090572]
[1724942664095,0.1742,60886.0,60885.0,0.00198762]
[1724942664096,0.2563,60886.0,60885.0,0.00198762]
[1724942664385,0.08112,60871.0,60870.0,0.082121]
[1724942664980,0.082121,60870.0,60869.0,0.02989335]
[1724942665184,0.1553,60875.0,60868.0,0.082123]
[1724942665185,0.082123,60869.0,60868.0,0.082123]
[1724942665384,0.08212,60872.0,60865.0,0.3608]
[1724942665890,0.1553,60875.0,60865.0,0.3608]
[1724942666087,0.082121,60871.0,60865.0,0.3608]
[1724942666393,0.1553,60875.0,60868.0,0.082123]
[1724942666587,0.1553,60875.0,60866.0,0.082127]
[1724942666786,0.081121,60871.0,60867.0,0.082125]
[1724942666990,0.081121,60871.0,60868.0,0.082124]
[1724942667291,0.081121,60871.0,60865.0,0.38975613]
[1724942667292,0.159315,60875.0,60865.0,0.38975613]
[1724942667483,0.082117,60874.0,60865.0,0.38975613]
[1724942667699,0.082117,60874.0,60870.0,0.08212]
[1724942668194,0.082118,60873.0,60870.0,0.08212]
[1724942668382,0.082117,60874.0,60871.0,0.08212]
[1724942668887,0.082117,60874.0,60872.0,0.082118]
[1724942669289,0.0772,60875.0,60865.0,0.38975613]
[1724942669599,0.082125,60867.0,60866.0,0.082126]
[1724942671388,0.082122,60870.0,60865.0,0.38975613]
[1724942671588,0.008,60867.0,60866.0,0.001]